[Event "Excelsior March op"]
[Site "Toronto CAN"]
[Date "2024.03.15"]
[Round "1.1"]
[White "Yang, Larry"]
[Black "Rodrigue-Lemieux, Shawn"]
[Result "0-1"]
[ECO "B12"]
[WhiteElo "2069"]
[BlackElo "2477"]
[PlyCount "66"]
[EventDate "2024.03.15"]
[EventType "swiss"]
[EventRounds "5"]
[EventCountry "CAN"]
[TimeControl "90+30"]

1. e4 {[%emt 0:00:00]} c6 {[%emt 0:00:00]} 2. d4 {[%emt 0:00:00]} d5 {
[%emt 0:00:00]} 3. e5 {[%emt 0:00:00]} Bf5 {[%emt 0:00:00]} 4. Bd3 {
[%emt 0:00:00]} Bxd3 {[%emt 0:00:00]} 5. Qxd3 {[%emt 0:00:00]} e6 {
[%emt 0:00:00]} 6. Ne2 {[%emt 0:00:00]} c5 {[%emt 0:00:00]} 7. c3 {
[%emt 0:00:00]} Nd7 {[%emt 0:00:00]} 8. Nd2 {[%emt 0:00:00]} Ne7 {
[%emt 0:00:00]} 9. Nf3 {[%emt 0:00:00]} Nc6 {[%emt 0:00:00]} 10. O-O {
[%emt 0:00:00]} Be7 {[%emt 0:00:00]} 11. Bd2 {[%emt 0:00:00]} Qb6 {
[%emt 0:00:00]} 12. Rab1 {[%emt 0:00:00]} a5 {[%emt 0:00:00]} 13. Nf4 {
[%emt 0:00:00]} O-O {[%emt 0:00:00]} 14. h4 {[%emt 0:00:00]} Rfc8 {
[%emt 0:00:00]} 15. g4 {[%emt 0:00:00]} cxd4 {[%emt 0:00:00]} 16. cxd4 {
[%emt 0:00:00]} Nb4 {[%emt 0:00:00]} 17. Bxb4 {[%emt 0:00:00]} axb4 {
[%emt 0:00:00]} 18. g5 {[%emt 0:00:00]} Rxa2 {[%emt 0:00:00]} 19. Nh5 {
[%emt 0:00:01]} Nf8 {[%emt 0:00:00]} 20. Kh1 {[%emt 0:07:48]} Qa6 {
[%emt 0:00:00]} 21. Qd2 {[%emt 0:01:42]} Rc3 {[%emt 0:00:00]} 22. Nh2 {
[%emt 0:02:17]} Rd3 {[%emt 0:00:00]} 23. Qf4 {[%emt 0:00:19]} Ng6 {
[%emt 0:00:00]} 24. Qg4 {[%emt 0:00:42]} Qc4 {[%emt 0:00:00]} 25. Rfc1 {
[%emt 0:00:32]} Qxd4 {[%emt 0:00:00]} 26. Rc8+ {[%emt 0:00:01]} Bf8 {
[%emt 0:00:00]} 27. Nf6+ {[%emt 0:00:30]} gxf6 {[%emt 0:00:00]} 28. h5 {
[%emt 0:00:57]} Rxb2 {[%emt 0:00:00]} 29. Rxb2 {[%emt 0:00:36]} Rd1+ {
[%emt 0:00:00]} 30. Kg2 {[%emt 0:00:28]} Nf4+ {[%emt 0:00:00]} 31. Qxf4 {
[%emt 0:00:33]} Qxf4 {[%emt 0:00:00]} 32. Rb3 {[%emt 0:00:21]} Qe4+ {
[%emt 0:00:00]} 33. Rf3 {[%emt 0:00:22]} fxg5 {[%emt 0:00:00]} 0-1

[Event "Excelsior March op"]
[Site "Toronto CAN"]
[Date "2024.03.16"]
[Round "2.1"]
[White "Rodrigue-Lemieux, Shawn"]
[Black "Ning, Eric"]
[Result "1-0"]
[ECO "A16"]
[WhiteElo "2477"]
[BlackElo "1957"]
[PlyCount "143"]
[EventDate "2024.03.15"]
[EventType "swiss"]
[EventRounds "5"]
[EventCountry "CAN"]
[TimeControl "90+30"]

1. c4 {[%emt 0:00:00]} Nf6 {[%emt 0:00:00]} 2. g3 {[%emt 0:00:00]} g6 {
[%emt 0:00:00]} 3. Bg2 {[%emt 0:00:00]} d5 {[%emt 0:00:00]} 4. cxd5 {
[%emt 0:00:00]} Nxd5 {[%emt 0:00:00]} 5. Nc3 {[%emt 0:00:00]} Nb6 {
[%emt 0:00:00]} 6. h4 {[%emt 0:00:00]} h6 {[%emt 0:00:00]} 7. d4 {
[%emt 0:00:00]} Bg7 {[%emt 0:00:00]} 8. Nf3 {[%emt 0:00:00]} Nc6 {
[%emt 0:00:00]} 9. Be3 {[%emt 0:00:00]} Bf5 {[%emt 0:00:00]} 10. O-O {
[%emt 0:00:00]} O-O {[%emt 0:00:00]} 11. Qc1 {[%emt 0:00:00]} Kh7 {
[%emt 0:00:00]} 12. Rd1 {[%emt 0:00:00]} Nb4 {[%emt 0:00:00]} 13. d5 {
[%emt 0:00:00]} Qe8 {[%emt 0:00:00]} 14. Nd4 {[%emt 0:00:00]} Bd7 {
[%emt 0:00:00]} 15. a3 {[%emt 0:00:00]} Na6 {[%emt 0:00:00]} 16. Bf4 {
[%emt 0:00:00]} Rc8 {[%emt 0:00:00]} 17. e4 {[%emt 0:00:00]} c6 {[%emt 0:00:00]
} 18. Bf3 {[%emt 0:00:00]} Nc7 {[%emt 0:00:00]} 19. dxc6 {[%emt 0:00:00]} bxc6
{[%emt 0:00:00]} 20. e5 {[%emt 0:00:00]} Ncd5 {[%emt 0:00:00]} 21. Nxd5 {
[%emt 0:00:00]} Nxd5 {[%emt 0:00:00]} 22. Bd2 {[%emt 0:00:00]} Bxe5 {
[%emt 0:00:00]} 23. Bxh6 {[%emt 0:00:00]} Rh8 {[%emt 0:00:00]} 24. Bg2 {
[%emt 0:03:26]} Rb8 {[%emt 0:02:42]} 25. b4 {[%emt 0:00:58]} Bg4 {
[%emt 0:04:53]} 26. Rd3 {[%emt 0:00:31]} Rc8 {[%emt 0:00:35]} 27. Ra2 {
[%emt 0:01:34]} Qd7 {[%emt 0:02:19]} 28. Rc2 {[%emt 0:00:49]} Nf6 {
[%emt 0:01:56]} 29. Qe3 {[%emt 0:03:39]} Bf5 {[%emt 0:01:52]} 30. Nxf5 {
[%emt 0:01:04]} Qxf5 {[%emt 0:00:08]} 31. Bg5 {[%emt 0:00:36]} Rhd8 {
[%emt 0:01:12]} 32. Rcd2 {[%emt 0:00:30]} Ng4 {[%emt 0:00:56]} 33. Qf3 {
[%emt 0:01:06]} Rxd3 {[%emt 0:00:27]} 34. Qxd3 {[%emt 0:01:00]} Qxd3 {
[%emt 0:00:46]} 35. Rxd3 {[%emt 0:00:02]} Rc7 {[%emt 0:00:19]} 36. Bf3 {
[%emt 0:01:10]} Nh6 {[%emt 0:00:24]} 37. Be3 {[%emt 0:01:35]} Nf5 {
[%emt 0:00:17]} 38. Bc5 {[%emt 0:00:05]} Kg7 {[%emt 0:00:21]} 39. Be4 {
[%emt 0:00:49]} Nd6 {[%emt 0:00:29]} 40. Bg2 {[%emt 0:00:12]} Nc4 {
[%emt 0:01:00]} 41. Bf1 {[%emt 0:00:48]} Nb6 {[%emt 0:00:39]} 42. f4 {
[%emt 0:01:14]} Bb2 {[%emt 0:00:08]} 43. g4 {[%emt 0:01:05]} Nd5 {
[%emt 0:00:54]} 44. Rb3 {[%emt 0:00:22]} Bc1 {[%emt 0:00:18]} 45. Bd4+ {
[%emt 0:00:14]} f6 {[%emt 0:00:44]} 46. f5 {[%emt 0:00:08]} Kf7 {[%emt 0:00:30]
} 47. fxg6+ {[%emt 0:00:46]} Kxg6 {[%emt 0:00:01]} 48. Bd3+ {[%emt 0:00:11]}
Kh6 {[%emt 0:00:15]} 49. Kf2 {[%emt 0:00:25]} Nf4 {[%emt 0:01:06]} 50. Ba6 {
[%emt 0:00:58]} Ng6 {[%emt 0:00:34]} 51. Rc3 {[%emt 0:00:29]} Bb2 {
[%emt 0:00:37]} 52. Be3+ {[%emt 0:00:04]} Kg7 {[%emt 0:00:06]} 53. Rb3 {
[%emt 0:00:22]} Be5 {[%emt 0:00:07]} 54. h5 {[%emt 0:00:18]} Nf4 {
[%emt 0:00:38]} 55. Rb1 {[%emt 0:01:00]} Bd6 {[%emt 0:01:07]} 56. Kf3 {
[%emt 0:00:52]} e5 {[%emt 0:00:27]} 57. Rc1 {[%emt 0:00:13]} Kf7 {
[%emt 0:00:30]} 58. Ke4 {[%emt 0:00:24]} Bf8 {[%emt 0:00:37]} 59. Bc4+ {
[%emt 0:00:36]} Ke8 {[%emt 0:00:26]} 60. Kf5 {[%emt 0:00:15]} Bh6 {
[%emt 0:00:34]} 61. Rd1 {[%emt 0:00:34]} Bg5 {[%emt 0:00:29]} 62. Rd6 {
[%emt 0:00:34]} Ke7 {[%emt 0:00:14]} 63. Bc5 {[%emt 0:00:26]} Ke8 {
[%emt 0:00:03]} 64. a4 {[%emt 0:00:18]} Ng2 {[%emt 0:01:15]} 65. Ke4 {
[%emt 0:00:38]} Nf4 {[%emt 0:00:13]} 66. a5 {[%emt 0:00:06]} Ng2 {
[%emt 0:00:25]} 67. a6 {[%emt 0:00:15]} Nf4 {[%emt 0:00:03]} 68. Bb3 {
[%emt 0:00:14]} Ne2 {[%emt 0:00:44]} 69. Bc2 {[%emt 0:01:23]} Nc3+ {
[%emt 0:00:20]} 70. Kf5 {[%emt 0:00:20]} Nd5 {[%emt 0:00:16]} 71. Ba4 {
[%emt 0:00:50]} Ne3+ {[%emt 0:01:27]} 72. Kg6 {[%emt 0:00:36]} 1-0

[Event "Excelsior March op"]
[Site "Toronto CAN"]
[Date "2024.03.17"]
[Round "4.1"]
[White "Rodrigue-Lemieux, Shawn"]
[Black "Sambuev, Bator"]
[Result "1-0"]
[ECO "C47"]
[WhiteElo "2477"]
[BlackElo "2465"]
[PlyCount "127"]
[EventDate "2024.03.15"]
[EventType "swiss"]
[EventRounds "5"]
[EventCountry "CAN"]
[TimeControl "90+30"]

1. e4 {[%emt 0:00:00]} e5 {[%emt 0:00:00]} 2. Nf3 {[%emt 0:00:00]} Nc6 {
[%emt 0:00:00]} 3. Nc3 {[%emt 0:00:00]} Nf6 {[%emt 0:00:00]} 4. d4 {
[%emt 0:00:00]} exd4 {[%emt 0:00:00]} 5. Nxd4 {[%emt 0:00:00]} Bb4 {
[%emt 0:00:00]} 6. Nxc6 {[%emt 0:00:00]} bxc6 {[%emt 0:00:00]} 7. Bd3 {
[%emt 0:00:00]} d5 {[%emt 0:00:00]} 8. exd5 {[%emt 0:00:00]} O-O {
[%emt 0:00:00]} 9. O-O {[%emt 0:00:00]} cxd5 {[%emt 0:00:00]} 10. h3 {
[%emt 0:00:00]} Rb8 {[%emt 0:00:00]} 11. Be3 {[%emt 0:00:00]} c5 {
[%emt 0:00:00]} 12. a3 {[%emt 0:00:00]} Bxc3 {[%emt 0:00:00]} 13. bxc3 {
[%emt 0:00:00]} c4 {[%emt 0:00:00]} 14. Be2 {[%emt 0:00:00]} Ne4 {
[%emt 0:00:00]} 15. Bxa7 {[%emt 0:00:00]} Nxc3 {[%emt 0:00:00]} 16. Qd2 {
[%emt 0:00:00]} Nxe2+ {[%emt 0:00:00]} 17. Qxe2 {[%emt 0:00:00]} Ra8 {
[%emt 0:00:00]} 18. Bd4 {[%emt 0:00:00]} Re8 {[%emt 0:00:00]} 19. Qf3 {
[%emt 0:00:00]} Qg5 {[%emt 0:00:00]} 20. a4 {[%emt 0:00:00]} Bf5 {
[%emt 0:00:00]} 21. c3 {[%emt 0:00:00]} Qg6 {[%emt 0:00:00]} 22. a5 {
[%emt 0:00:00]} Re6 {[%emt 0:00:00]} 23. Kh2 {[%emt 0:00:00]} h5 {
[%emt 0:00:00]} 24. Qg3 {[%emt 0:00:00]} Qxg3+ {[%emt 0:00:00]} 25. Kxg3 {
[%emt 0:00:00]} Bd3 {[%emt 0:00:00]} 26. Rfd1 {[%emt 0:00:00]} Rea6 {
[%emt 0:00:00]} 27. Bb6 {[%emt 0:00:00]} f6 {[%emt 0:00:00]} 28. Re1 {
[%emt 0:00:00]} Kf7 {[%emt 0:00:00]} 29. Kf4 {[%emt 0:00:00]} d4 {
[%emt 0:00:00]} 30. cxd4 {[%emt 0:00:00]} c3 {[%emt 0:00:00]} 31. d5 {
[%emt 0:00:00]} Re8 {[%emt 0:01:23]} 32. d6 {[%emt 0:00:00]} g5+ {
[%emt 0:01:16]} 33. Kf3 {[%emt 0:00:00]} Bb5 {[%emt 0:00:44]} 34. Rxe8 {
[%emt 0:03:39]} Kxe8 {[%emt 0:00:14]} 35. Ke4 {[%emt 0:00:11]} Kd7 {
[%emt 0:07:22]} 36. Kd5 {[%emt 0:00:07]} Bc6+ {[%emt 0:02:08]} 37. Kc5 {
[%emt 0:00:15]} c2 {[%emt 0:00:34]} 38. f3 {[%emt 0:06:04]} Ra8 {[%emt 0:00:57]
} 39. Rc1 {[%emt 0:00:34]} Re8 {[%emt 0:00:54]} 40. Rxc2 {[%emt 0:00:10]} Re5+
{[%emt 0:00:05]} 41. Kd4 {[%emt 0:01:22]} Rd5+ {[%emt 0:00:40]} 42. Ke3 {
[%emt 0:02:22]} Kxd6 {[%emt 0:00:12]} 43. a6 {[%emt 0:00:46]} Rb5 {
[%emt 0:02:07]} 44. a7 {[%emt 0:01:07]} Bb7 {[%emt 0:00:27]} 45. Bd8 {
[%emt 0:02:20]} Rb3+ {[%emt 0:01:10]} 46. Kf2 {[%emt 0:00:18]} Ra3 {
[%emt 0:00:45]} 47. Bxf6 {[%emt 0:01:20]} Rxa7 {[%emt 0:01:29]} 48. Bxg5 {
[%emt 0:00:05]} Bd5 {[%emt 0:00:15]} 49. Kg3 {[%emt 0:01:41]} Ra2 {
[%emt 0:00:24]} 50. Rxa2 {[%emt 0:00:56]} Bxa2 {[%emt 0:00:07]} 51. Kh4 {
[%emt 0:00:21]} Bc4 {[%emt 0:00:22]} 52. Kxh5 {[%emt 0:00:34]} Bf1 {
[%emt 0:00:04]} 53. g4 {[%emt 0:00:35]} Bxh3 {[%emt 0:00:05]} 54. Bc1 {
[%emt 0:00:46]} Ke7 {[%emt 0:01:58]} 55. f4 {[%emt 0:00:51]} Kf7 {
[%emt 0:02:22]} 56. f5 {[%emt 0:00:18]} Kg7 {[%emt 0:00:19]} 57. Bb2+ {
[%emt 0:00:12]} Kh7 {[%emt 0:00:20]} 58. Kh4 {[%emt 0:00:33]} Bf1 {
[%emt 0:00:14]} 59. g5 {[%emt 0:00:27]} Be2 {[%emt 0:00:52]} 60. g6+ {
[%emt 0:00:09]} Kg8 {[%emt 0:00:41]} 61. f6 {[%emt 0:00:19]} Bc4 {
[%emt 0:00:07]} 62. Kg5 {[%emt 0:00:15]} Bb3 {[%emt 0:00:28]} 63. Ba3 {
[%emt 0:00:35]} Bc4 {[%emt 0:00:25]} 64. Kf4 {[%emt 0:00:06]} 1-0

[Event "US Masters"]
[Site "Charlotte USA"]
[Date "2023.11.23"]
[Round "1.11"]
[White "Canty, James"]
[Black "Rodrigue-Lemieux, Shawn"]
[Result "1/2-1/2"]
[ECO "D00"]
[WhiteElo "2154"]
[BlackElo "2492"]
[PlyCount "61"]
[EventDate "2023.11.24"]
[EventType "swiss"]
[EventRounds "9"]
[EventCountry "USA"]
[Source "ChessMix"]
[SourceDate "2023.12.01"]
[TimeControl "5400+30"]

1. d4 {[%emt 0:03:03]} Nf6 {[%emt 0:00:11]} 2. Nc3 {[%emt 0:00:03]} d5 {
[%emt 0:00:18]} 3. Bf4 {[%emt 0:00:04]} a6 {[%emt 0:07:59]} 4. e3 {
[%emt 0:00:16]} e6 {[%emt 0:00:19]} 5. g4 {[%emt 0:00:04]} c5 {[%emt 0:03:06]}
6. g5 {[%emt 0:00:46]} Nfd7 {[%emt 0:00:09]} 7. Qf3 {[%emt 0:00:26]} Nc6 {
[%emt 0:03:40]} 8. Nge2 {[%emt 0:01:43]} b5 {[%emt 0:04:55]} 9. h4 {
[%emt 0:02:27]} Bb7 {[%emt 0:13:11]} 10. h5 {[%emt 0:04:02]} b4 {[%emt 0:05:48]
} 11. Na4 {[%emt 0:01:43]} Qa5 {[%emt 0:14:01]} 12. b3 {[%emt 0:00:03]} Be7 {
[%emt 0:16:00]} 13. Qg3 {[%emt 0:05:32]} O-O-O {[%emt 0:02:53]} 14. Bh3 {
[%emt 0:02:37]} Rde8 {[%emt 0:01:59]} 15. O-O {[%emt 0:01:58]} Bd8 {
[%emt 0:03:34]} 16. c3 {[%emt 0:05:33]} f6 {[%emt 0:03:24]} 17. cxb4 {
[%emt 0:00:17]} cxb4 {[%emt 0:01:00]} 18. Rac1 {[%emt 0:06:23]} fxg5 {
[%emt 0:00:02]} 19. Bd6 {[%emt 0:02:54]} Bc7 {[%emt 0:00:27]} 20. Nc5 {
[%emt 0:02:21]} Bxd6 {[%emt 0:07:25]} 21. Qxd6 {[%emt 0:02:10]} Qc7 {
[%emt 0:00:02]} 22. Qxc7+ {[%emt 0:01:10]} Kxc7 {[%emt 0:00:02]} 23. Nxe6+ {
[%emt 0:00:10]} Kb6 {[%emt 0:01:45]} 24. Nxg5 {[%emt 0:01:35]} Nf6 {
[%emt 0:01:28]} 25. Nf4 {[%emt 0:00:24]} Re7 {[%emt 0:03:36]} 26. Bg2 {
[%emt 0:01:49]} Na7 {[%emt 0:00:16]} 27. Bf3 {[%emt 0:06:37]} Nb5 {
[%emt 0:00:13]} 28. Rc5 {[%emt 0:01:08]} Rd8 {[%emt 0:00:18]} 29. Rfc1 {
[%emt 0:01:54]} a5 {[%emt 0:01:10]} 30. Nge6 {[%emt 0:02:44]} Rd6 {
[%emt 0:00:32]} 31. Ng5 {[%emt 0:02:14]} 1/2-1/2

[Event "US Masters"]
[Site "Charlotte USA"]
[Date "2023.11.25"]
[Round "5.5"]
[White "Zhou, Jianchao"]
[Black "Rodrigue-Lemieux, Shawn"]
[Result "1-0"]
[ECO "E06"]
[WhiteElo "2557"]
[BlackElo "2492"]
[PlyCount "87"]
[EventDate "2023.11.24"]
[EventType "swiss"]
[EventRounds "9"]
[EventCountry "USA"]
[Source "ChessMix"]
[SourceDate "2023.12.01"]
[TimeControl "5400+30"]

1. c4 {[%emt 0:00:37]} Nf6 {[%emt 0:05:07]} 2. Nf3 {[%emt 0:02:35]} e6 {
[%emt 0:00:09]} 3. g3 {[%emt 0:00:41]} d5 {[%emt 0:00:07]} 4. Bg2 {
[%emt 0:00:07]} Be7 {[%emt 0:00:06]} 5. d4 {[%emt 0:00:12]} O-O {[%emt 0:00:10]
} 6. Qc2 {[%emt 0:00:09]} c5 {[%emt 0:02:15]} 7. dxc5 {[%emt 0:00:55]} d4 {
[%emt 0:09:00]} 8. b4 {[%emt 0:01:16]} a5 {[%emt 0:01:48]} 9. b5 {
[%emt 0:01:48]} Bxc5 {[%emt 0:00:32]} 10. Nbd2 {[%emt 0:02:58]} Nbd7 {
[%emt 0:05:09]} 11. a4 {[%emt 0:06:41]} e5 {[%emt 0:03:39]} 12. O-O {
[%emt 0:00:33]} Ra7 {[%emt 0:11:06]} 13. Nb3 {[%emt 0:03:05]} Re8 {
[%emt 0:02:28]} 14. Nxc5 {[%emt 0:04:13]} Nxc5 {[%emt 0:00:16]} 15. Ba3 {
[%emt 0:01:04]} b6 {[%emt 0:01:28]} 16. Bxc5 {[%emt 0:02:21]} bxc5 {
[%emt 0:00:04]} 17. Nd2 {[%emt 0:00:42]} Be6 {[%emt 0:08:29]} 18. Rfe1 {
[%emt 0:05:06]} Nd7 {[%emt 0:04:09]} 19. Bc6 {[%emt 0:08:31]} Qe7 {
[%emt 0:04:00]} 20. e3 {[%emt 0:00:54]} Rc8 {[%emt 0:02:26]} 21. exd4 {
[%emt 0:01:58]} exd4 {[%emt 0:00:37]} 22. Bd5 {[%emt 0:03:04]} Nf8 {
[%emt 0:02:46]} 23. Nf3 {[%emt 0:02:21]} Qf6 {[%emt 0:04:40]} 24. Bxe6 {
[%emt 0:00:22]} Nxe6 {[%emt 0:00:13]} 25. Qd3 {[%emt 0:01:17]} g6 {
[%emt 0:04:52]} 26. Re5 {[%emt 0:01:47]} Re7 {[%emt 0:02:02]} 27. h4 {
[%emt 0:02:41]} Nf8 {[%emt 0:01:05]} 28. Rxe7 {[%emt 0:00:48]} Qxe7 {
[%emt 0:03:03]} 29. Re1 {[%emt 0:00:04]} Qd6 {[%emt 0:00:38]} 30. Qd2 {
[%emt 0:14:17]} Nd7 {[%emt 0:01:37]} 31. Qxa5 {[%emt 0:05:33]} Nb6 {
[%emt 0:00:49]} 32. Qa6 {[%emt 0:08:22]} Ra8 {[%emt 0:00:05]} 33. Qb7 {
[%emt 0:00:34]} Rb8 {[%emt 0:02:05]} 34. Qe7 {[%emt 0:01:37]} Qxe7 {
[%emt 0:02:49]} 35. Rxe7 {[%emt 0:01:32]} Ra8 {[%emt 0:05:44]} 36. Rc7 {
[%emt 0:02:58]} Nxa4 {[%emt 0:02:46]} 37. Ne5 {[%emt 0:01:04]} f6 {
[%emt 0:08:01]} 38. Nd7 {[%emt 0:03:22]} Rd8 {[%emt 0:02:04]} 39. Nxf6+ {
[%emt 0:00:05]} Kf8 {[%emt 0:00:01]} 40. Nxh7+ {[%emt 0:00:19]} Ke8 {
[%emt 0:00:01]} 41. Nf6+ {[%emt 0:00:26]} Kf8 {[%emt 0:00:00]} 42. Rd7 {
[%emt 0:00:19]} Rc8 {[%emt 0:01:34]} 43. Rh7 {[%emt 0:03:00]} d3 {
[%emt 0:00:43]} 44. Kf1 {[%emt 0:02:00]} 1-0

[Event "Francophonie-ch"]
[Site "Yamoussoukro CIV"]
[Date "2023.07.11"]
[Round "8.1"]
[White "Travadon, Loic"]
[Black "Rodrigue-Lemieux, Shawn"]
[Result "1/2-1/2"]
[ECO "C68"]
[WhiteElo "2463"]
[BlackElo "2495"]
[PlyCount "25"]
[EventDate "2023.07.02"]
[EventType "swiss"]
[EventRounds "9"]
[EventCountry "IVO"]
[Source "ChessMix"]
[SourceDate "2023.07.20"]
[TimeControl "5400+30"]

1. e4 {[%emt 0:00:04]} e5 {[%emt 0:00:05]} 2. Nf3 {[%emt 0:00:10]} Nc6 {
[%emt 0:00:06]} 3. Bb5 {[%emt 0:00:05]} a6 {[%emt 0:00:05]} 4. Bxc6 {
[%emt 0:00:06]} dxc6 {[%emt 0:00:06]} 5. O-O {[%emt 0:00:11]} Bg4 {
[%emt 0:00:10]} 6. h3 {[%emt 0:00:09]} h5 {[%emt 0:00:06]} 7. c3 {
[%emt 0:00:05]} Qd3 {[%emt 0:00:06]} 8. hxg4 {[%emt 0:00:06]} hxg4 {
[%emt 0:00:06]} 9. Nxe5 {[%emt 0:00:06]} Bd6 {[%emt 0:00:04]} 10. Nxd3 {
[%emt 0:00:07]} Bh2+ {[%emt 0:00:05]} 11. Kh1 {[%emt 0:00:09]} Be5+ {
[%emt 0:00:03]} 12. Kg1 {[%emt 0:00:07]} Bh2+ {[%emt 0:00:08]} 13. Kh1 {
[%emt 0:00:06]} 1/2-1/2

[Event "Carnaval"]
[Site "Quebec CAN"]
[Date "2020.02.16"]
[Round "4"]
[White "Rodrigue-Lemieux, Shawn"]
[Black "Hirschberg, Valerian"]
[Result "1-0"]
[ECO "B31"]
[WhiteElo "2401"]
[BlackElo "2284"]
[Annotator "Boutin,Jean-Roger"]
[PlyCount "109"]
[EventDate "2020.02.14"]
[EventType "swiss"]
[EventRounds "5"]
[EventCountry "CAN"]
[TimeControl "240+2"]

1. e4 c5 2. Nf3 Nc6 3. Bb5 g6 4. Bxc6 bxc6 5. O-O Bg7 6. Re1 Nh6 7. c3 O-O 8.
d4 cxd4 9. cxd4 d5 10. e5 f6 11. h3 Qb6 12. e6 Nf5 13. Nc3 Nd6 14. Na4 Qb5 15.
Nc5 a5 16. a4 Qb6 17. Ra3 Nb7 18. Qc2 Nxc5 19. dxc5 Qd8 20. Nd4 f5 21. Qd1 f4
22. Rb3 Qc7 23. h4 Ba6 24. Rb6 Bb7 25. Qd3 Ra6 26. Bd2 Rxb6 27. Bxa5 Ba6 28.
Qd1 f3 29. cxb6 Qf4 30. Nxf3 d4 31. Bb4 Bf6 32. Bd2 Qd6 33. a5 c5 34. Bh6 Ra8
35. Bg5 Bg7 36. Qa4 h6 37. Bd2 Rd8 38. b4 Bb7 39. bxc5 Qxc5 40. Qb4 Qxb4 41.
Bxb4 Kf8 42. Nd2 Rc8 43. Ne4 d3 44. Nc5 Bc3 45. Bxc3 Rxc5 46. Bd2 Kg7 47. f3
Rc2 48. Rd1 Ba6 49. Kf2 Kf6 50. Ke3 Rc6 51. Rb1 Rxe6+ 52. Kd4 Rd6+ 53. Kc5 Bb7
54. a6 Bxa6 55. b7 1-0

[Event "Quebec op"]
[Site "Ste-Foy CAN"]
[Date "2017.08.19"]
[Round "9"]
[White "Rodrigue-Lemieux, Shawn"]
[Black "Van Hoolandt, Patrick"]
[Result "1-0"]
[ECO "C54"]
[WhiteElo "2066"]
[BlackElo "2110"]
[PlyCount "107"]
[EventDate "2017.08.12"]
[EventType "swiss"]
[EventRounds "9"]
[EventCountry "CAN"]
[TimeControl "600+2"]

1. e4 e5 2. Nf3 Nc6 3. Bc4 Bc5 4. c3 Nf6 5. d3 a6 6. O-O d6 7. b4 Ba7 8. Nbd2
O-O 9. h3 Ne7 10. Re1 Ng6 11. Nf1 b5 12. Bb3 c5 13. Ng3 h6 14. a3 a5 15. d4
axb4 16. axb4 Bb7 17. Bb2 c4 18. Bc2 Qb6 19. Nf5 Rfe8 20. Ra5 Rad8 21. Qa1 Bb8
22. d5 Bc8 23. Ng3 Nf4 24. Bc1 g5 25. Be3 Qb7 26. Qc1 Re7 27. h4 Nh7 28. hxg5
hxg5 29. Nxg5 Nxg5 30. Bxf4 Nh7 31. Bg5 f6 32. Bh4 Bc7 33. Ra2 Bb6 34. Qh6 Rf8
35. Bd1 Rg7 36. Bh5 Bd7 37. Bg6 Be8 38. Bxe8 Rxe8 39. Nh5 Qf7 40. Qxg7+ Qxg7
41. Nxg7 Kxg7 42. Ra6 Rb8 43. Rea1 Rb7 44. Ra8 Kg6 45. R1a6 Kh5 46. g3 Kg6 47.
Rc8 f5 48. Rc6 Bc7 49. Rxc7 Rxc7 50. Rxd6+ Kf7 51. exf5 Ra7 52. Rb6 Ra3 53.
Rb7+ Kg8 54. d6 1-0